Cogmind - Beta 16 @@@ ROGUE MODE // 2025.10.28 @ 14:41:52 Player: Uranium-235 Result: Destroyed by YI-UF0 with YI-UF0's Doublenader Performance ------------- Evolutions (0) 0 Regions Visited (4) 800 Robots Destroyed (22) 110 Value Destroyed (459) 459 Prototype IDs (23) 460 Alien Tech Used (0) 0 Bonus (300) 300 TOTAL SCORE: 2129 Bonus ------- Aligned with FarCom 300 Cogmind --------- Core Integrity 0/250 Matter 300/300 Energy 262/265 System Corruption 0% Temperature Cool (0) Movement Rolling (115) Ox1 Location -9/Mines Parts ------- > --- POWER (1) -------- Reinforced Ion Engine > --- PROPULSION (2) --- Compact Wheel Compact Wheel > --- UTILITY (2) ------ Improved Heat Sink High-capacity Storage Unit > --- WEAPON (2) ------- Beam Cannon Light Cannon > --- INVENTORY (20) --- Light Deuterium Engine Light Nuclear Core Reinforced Deuterium Engine Light Fission Core Wheel Heat Sink Medium Matter Pod (100) Army-in-a-Box (30/30) Particle Gun Firepult Rocket Launcher Datajack Heavy Explosive Trap Heavy Explosive Trap Peak State ------------ > --- POWER ------------ Reinforced Ion Engine > --- PROPULSION ------- Wheel Wheel > --- UTILITY ---------- Improved Heat Sink High-capacity Storage Unit > --- WEAPON ----------- Firepult > --- INVENTORY -------- Ion Engine Light Nuclear Core Reinforced Deuterium Engine Light Fission Core Compact Wheel Compact Wheel Heat Sink Medium Matter Pod Skeleton Box Army-in-a-Box Light Cannon Rocket Launcher Datajack [Rating: 36] Favorites ----------- Power Ion Engine Engine Ion Engine Propulsion Wheel Leg Aluminum Leg Wheel Wheel Utility Improved Heat Sink Device Improved Heat Sink Storage High-capacity Storage Unit Weapon Beam Cannon Energy Gun Particle Gun Energy Cannon Beam Cannon Ballistic Gun Light Assault Rifle Ballistic Cannon Light Cannon Build | -11 -10 -10 -10 -9 ------- Run | Yrd Mat Min Exi Min Slots Evolved . | . . . . . Power . | . . . . . Propulsion . | . . . . . Utility . | . . . . . Weapon . | . . . . . Parts Attached 20 | 7 8 . . 5 Power 3 | 1 1 . . 1 Engine 3 | 1 1 . . 1 Core . | . . . . . Reactor . | . . . . . Propulsion 6 | 2 2 . . 2 Treads . | . . . . . Leg 2 | 2 . . . . Wheel 4 | . 2 . . 2 Hover . | . . . . . Flight . | . . . . . Utility 4 | 2 2 . . . Device 2 | 1 1 . . . Storage 2 | 1 1 . . . Processor . | . . . . . Hackware . | . . . . . Protection . | . . . . . Artifact . | . . . . . Weapon 7 | 2 3 . . 2 Energy Gun 3 | 2 1 . . . Energy Cannon 2 | . 1 . . 1 Ballistic Gun 1 | . 1 . . . Ballistic Cannon 1 | . . . . 1 Launcher . | . . . . . Special Weapon . | . . . . . Impact Weapon . | . . . . . Slashing Weapon . | . . . . . Piercing Weapon . | . . . . . Special Melee Weapon . | . . . . . Unidentified Prototypes . | . . . . . Parts Lost 1 | . . . . 1 Power . | . . . . . Propulsion 1 | . . . . 1 Utility . | . . . . . Weapon . | . . . . . Highest Loss Streak 1 | . . . . 1 To Critical Strikes . | . . . . . Average Backups 14 | 5 11 20 17 12 Power 3 | . 2 4 4 4 Propulsion 2 | 3 3 4 2 1 Utility 3 | . 2 5 4 3 Weapon 3 | . 2 6 4 3 Tool/Special . | . . . . . Unused Backups 32 | . 9 1 10 12 Power 12 | . 5 . 2 5 Propulsion 5 | . 2 . 2 1 Utility 6 | . . . 3 3 Weapon 7 | . 2 1 3 1 Tool/Special 2 | . . . . 2 Average Slot Usage (%) 99 | . 100 100 100 98 Engine 14 | . 14 14 14 14 Leg 4 | . 13 . . . Wheel 23 | . 14 28 28 28 Device 14 | . 14 14 14 14 Storage 14 | . 14 14 14 14 Energy Gun 13 | . 23 14 14 2 Energy Cannon 10 | . 2 14 14 13 Ballistic Cannon 3 | . . . . 10 Peak Build Rating 36 | 7 12 12 20 36 Average Rating 13 | 5 9 12 15 20 On Entrance 10 | . 7 12 12 20 Avg Prop Armor Cover (%) . | . . . . . Naked Turns . | . . . . . Heaviest Build 73 | 15 52 52 52 73 Greatest Support 32 | 20 20 20 20 32 Greatest Overweight (x) 7 | . 2 2 2 7 Average Overweight (x) 1 | . 1 2 2 1 Largest Inventory Capacity 20 | 8 20 20 20 20 Average Capacity 17 | 7 14 20 20 20 Most Carried 20 | 7 20 20 20 20 Average Carried 16 | 5 11 19 19 19 Final Capacity 20 | 8 20 20 20 20 Final Carried 20 | 7 20 20 20 20 Class Distribution -------------------- 100% | Mutant Dominant Class ---------------- Mutant | -10/Materials Mutant | -10/Mines Mutant | -10/Exiles Mutant | -9/Mines Resources | -11 -10 -10 -10 -9 ----------- Run | Yrd Mat Min Exi Min Matter Collected 611 | 242 175 51 . 143 Remotely . | . . . . . Salvage Created 858 | 36 458 116 . 248 Parts 44 | 8 12 10 . 14 Haulers Intercepted 2 | . 2 . . . Recyclers Shooed 2 | 1 1 . . . Parts Field Recycled . | . . . . . Retrieved Matter . | . . . . . Parts Self-Destructed . | . . . . . Prevented . | . . . . . Parts Restored . | . . . . . Kills | -11 -10 -10 -10 -9 ------- Run | Yrd Mat Min Exi Min Combat Hostiles Destroyed 21 | . 6 3 . 12 Guns 9 | . 6 2 . 1 Cannons 8 | . . 1 . 7 AOE 4 | . . . . 4 Classes Destroyed 8 | 1 3 1 . 3 Builder 1 | . . . . 1 Tunneler 3 | 2 . . . 1 Hauler 2 | . 2 . . . Recycler 2 | . 1 1 . . Swarmer 5 | . . 3 . 2 Grunt 8 | . 6 . . 2 Brawler 1 | . . . . 1 Assembled 7 | . . . . 7 Best Kill Streak 4 | 1 2 3 . 4 Combat Bots Only 4 | . 2 3 . 4 Max Kills in Single Turn 2 | 1 1 1 . 2 Gunslinging . | . . . . . Exploded 2 | . . . . 2 Melee . | . . . . . Uniques/NPCs Destroyed . | . . . . . Combat | -11 -10 -10 -10 -9 -------- Run | Yrd Mat Min Exi Min Hostile Shots Fired 85 | . 25 7 . 53 Missed 24 | . 9 3 . 12 Hits 61 | . 16 4 . 41 Melee 2 | . . . . 2 Projectile 59 | . 16 4 . 39 AOE 3 | . . . . 3 Damage Taken 930 | . 228 63 . 639 Core 258 | . 24 36 . 198 Absorbed by Shields . | . . . . . Core Remaining (%) 100 | 100 . . . . Volleys Fired 90 | 8 46 6 . 30 Largest 2 | 2 2 2 . 2 Hottest 250 | 100 125 125 . 250 Shots Fired 176 | 16 92 12 . 56 Gun 114 | 16 88 6 . 4 Cannon 62 | . 4 6 . 52 Launcher . | . . . . . Special . | . . . . . Kinetic 40 | . 18 . . 22 Thermal 136 | 16 74 12 . 34 Explosive . | . . . . . Electromagnetic . | . . . . . Robot Hit Streak 8 | 3 8 2 . 5 Robot Miss Streak 9 | 4 7 2 . 9 Penetration Max . | . . . . . Secondary Targets . | . . . . . Shots Hit Robots 87 | 7 53 4 . 23 Core Hits 45 | 3 19 4 . 19 Critical Kills . | . . . . . Critical Parts Destroyed . | . . . . . Critical Strikes 6 | 1 5 . . . Burn 6 | 1 5 . . . Melee Attacks . | . . . . . Impact . | . . . . . Slashing . | . . . . . Piercing . | . . . . . Sneak Attacks . | . . . . . Combat Hostiles . | . . . . . Follow-up Attacks . | . . . . . Damage Inflicted 1416 | 102 691 65 . 558 Guns 874 | 102 673 48 . 51 Cannons 381 | . 18 17 . 346 Explosions 161 | . . . . 161 Melee . | . . . . . Ramming . | . . . . . Kinetic 217 | . 115 . . 102 Thermal 1199 | 102 576 65 . 456 Explosive . | . . . . . Electromagnetic . | . . . . . Impact . | . . . . . Slashing . | . . . . . Piercing . | . . . . . Highest Corruption . | . . . . . Average Corruption . | . . . . . Corruption Purged . | . . . . . Corruption Blocked . | . . . . . Overload Shots . | . . . . . Overflow Damage 14 | . . . . 14 Projectiles 3 | . . . . 3 Explosions 11 | . . . . 11 Melee . | . . . . . Knockbacks 1 | . . . . 1 Impact . | . . . . . Kinetic 1 | . . . . 1 Secondary . | . . . . . Self-Inflicted Damage 56 | . . 26 . 30 Shots 4 | . . 1 . 3 Rammed . | . . . . . Targets Rammed . | . . . . . Kicked . | . . . . . Crushed . | . . . . . Highest Temperature 462 | 237 163 84 . 462 Average Temperature 83 | 106 47 36 . 180 Received Heat Transfer 214 | . 132 . . 82 Effects 4 | . . . . 4 Shutdowns 1 | . . . . 1 Interference 2 | . . . . 2 Short Circuit 1 | . . . . 1 Siege Activations . | . . . . . Martial Activations . | . . . . . Shielding Activations . | . . . . . Robots Disrupted . | . . . . . Combat Hostiles . | . . . . . Robots Corrupted . | . . . . . Combat Hostiles . | . . . . . Parts Fried . | . . . . . Impact Corruptions . | . . . . . Robots Melted . | . . . . . Combat Hostiles . | . . . . . Parts Melted 6 | . 6 . . . Heat Transferred 3951 | 370 1924 148 . 1509 Parts Sabotaged . | . . . . . Parts Stolen . | . . . . . Parts Stripped . | . . . . . Power Chain Reactions . | . . . . . Alert | -11 -10 -10 -10 -9 ------- Run | Yrd Mat Min Exi Min Maximum Alert Level . | . . . . . Low Security (%) 100 | 100 100 100 . 100 Level 1 . | . . . . . Level 2 . | . . . . . Level 3 . | . . . . . Level 4 . | . . . . . Level 5 . | . . . . . High Security . | . . . . . Max Security . | . . . . . Peak Influence 75 | 5 75 70 . 70 Initial . | . . . . . Average 15 | . 24 9 . 13 Influence Increases 484 | 10 201 92 . 181 Destroy 0b10 Robot/C 280 | . 120 60 . 100 Destroy 0b10 Robot/NC 40 | 10 15 5 . 10 Destroy Leader 54 | . 34 10 . 10 Successful Hack 17 | . 17 . . . Disable Machine 30 | . . 15 . 15 Destroy Structure 33 | . . 2 . 31 Lose Combat Pursuer 30 | . 15 . . 15 Influence Decreases 482 | 10 201 92 . 179 Time Decay 472 | 10 201 92 . 169 Lost Part 10 | . . . . 10 Squads Dispatched 1 | . . . . 1 Investigation 1 | . . . . 1 Extermination . | . . . . . Reinforcement . | . . . . . Assault . | . . . . . Garrison . | . . . . . Intercept . | . . . . . Searches Triggered . | . . . . . Construction Impeded . | . . . . . Haulers Reinforced . | . . . . . Active Scanning Responses . | . . . . . Cargo Convoy Interrupts . | . . . . . Stealth | -11 -10 -10 -10 -9 --------- Run | Yrd Mat Min Exi Min Distress Signals 1 | . . . . 1 Communications Jammed . | . . . . . Distress Signals . | . . . . . Times Spotted 39 | . 18 3 . 18 Peak Tracking Total 14 | . 4 3 . 14 Tactical Retreats 3 | . 1 . . 2 Traps | -11 -10 -10 -10 -9 ------- Run | Yrd Mat Min Exi Min Traps Triggered . | . . . . . Indirectly . | . . . . . Trap Hack Attempts . | . . . . . Triggered . | . . . . . Disarmed . | . . . . . Reprogrammed . | . . . . . Reused . | . . . . . Traps Extracted . | . . . . . Installed . | . . . . . Triggered . | . . . . . Most Traps Carried 2 | . . . . 2 Machines | -11 -10 -10 -10 -9 ---------- Run | Yrd Mat Min Exi Min Machines Disabled 2 | . . 1 . 1 Max in Single Turn 1 | . . 1 . 1 Machines Repaired . | . . . . . Machines Dismantled . | . . . . . Machines Sabotaged . | . . . . . Overloaded Fab Kills . | . . . . . Hacking | -11 -10 -10 -10 -9 --------- Run | Yrd Mat Min Exi Min Machines Accessed 12 | . 6 . 4 2 Terminals 7 | . 6 . . 1 Fabricators . | . . . . . Repair Stations . | . . . . . Recycling Units . | . . . . . Scanalyzers . | . . . . . Garrison Access . | . . . . . Total Hacks 30 | . 20 . 7 3 Successful 18 | . 10 . 7 1 Failed 12 | . 10 . . 2 Catastrophic 2 | . . . . 2 Database Lockouts . | . . . . . Manual 19 | . 16 . 1 2 Terminals 22 | . 20 . . 2 Fabricators . | . . . . . Repair Stations . | . . . . . Recycling Units . | . . . . . Scanalyzers . | . . . . . Garrison Access . | . . . . . Terminal Hacks 12 | . 4 . 7 1 Record 6 | . . . 6 . Robot Analysis 1 | . 1 . . . Open Door 1 | . . . . 1 Branch Access Points 1 | . 1 . . . Terminal Index 1 | . 1 . . . Locate Traps 1 | . 1 . . . Proto ID Catalog 1 | . . . 1 . Fabricator Hacks . | . . . . . Repair Station Hacks . | . . . . . Recycling Unit Hacks . | . . . . . Scanalyzer . | . . . . . Garrison Access Hacks . | . . . . . Unauthorized Hacks 6 | . 6 . . . Terminals 6 | . 6 . . . Botnet 6 | . 6 . . . Fabricators . | . . . . . Repair Stations . | . . . . . Recycling Units . | . . . . . Scanalyzers . | . . . . . Garrison Access . | . . . . . Data Cores Recovered . | . . . . . Used . | . . . . . Hacking Detections 6 | . 5 . . 1 Full Trace Events 2 | . 1 . . 1 Feedback Events . | . . . . . Feedback Blocked . | . . . . . Robot Schematics Acquired . | . . . . . Robots Built . | . . . . . Authchips . | . . . . . Time . | . . . . . Total Robot Build Rating . | . . . . . Part Schematics Acquired . | . . . . . Parts Built . | . . . . . Authchips . | . . . . . Time . | . . . . . Total Part Build Rating . | . . . . . Part Studies Acquired . | . . . . . Parts Repaired . | . . . . . Time . | . . . . . Parts Recycled . | . . . . . Recycled Matter . | . . . . . Retrieved Matter . | . . . . . Retrieved Components . | . . . . . Parts Scanalyzed . | . . . . . Part Schematics Acquired . | . . . . . Parts Damaged . | . . . . . Bothacking | -11 -10 -10 -10 -9 ------------ Run | Yrd Mat Min Exi Min Used RIF Installer . | . . . . . Robots Hacked . | . . . . . Non-combat . | . . . . . Combat . | . . . . . Robot Hacks Applied . | . . . . . Relay Couplers Released . | . . . . . Fabnet Peak Effective % . | . . . . . Robots Rewired . | . . . . . Allies Hacked . | . . . . . Hacks Repelled . | . . . . . Allies | -11 -10 -10 -10 -9 -------- Run | Yrd Mat Min Exi Min Total Allies . | . . . . . Largest Group . | . . . . . Highest-Rated Group . | . . . . . Highest-Rated Ally . | . . . . . Total Orders . | . . . . . Ally Attacks . | . . . . . Total Damage . | . . . . . Kills . | . . . . . Allies Corrupted . | . . . . . Allies Melted . | . . . . . Intel | -11 -10 -10 -10 -9 ------- Run | Yrd Mat Min Exi Min Active Infowar (turns) 387 | 17 370 . . . Seismic 387 | 17 370 . . . Robot Analysis Total 1 | . 1 . . . Derelict Logs Recovered 3 | . . 3 . . Drone Launches . | . . . . . Drone Recoveries . | . . . . . Exploration | -11 -10 -10 -10 -9 ------------- Run | Yrd Mat Min Exi Min Turns Passed 2618 | 136 823 549 370 740 Spaces Moved 1892 | 80 507 427 326 552 Core 2 | 2 . . . . Treads . | . . . . . Legs 270 | 78 192 . . . Wheels 1620 | . 315 427 326 552 Hover . | . . . . . Flight . | . . . . . Fastest Speed 50 | 50 110 110 110 110 Average Speed 112 | 118 113 110 110 114 Slowest Speed 185 | 120 120 110 110 185 Overloaded Moves . | . . . . . Propulsion Burnouts . | . . . . . Robots Hopped . | . . . . . Potential Cave-ins . | . . . . . Cave-ins Triggered . | . . . . . Exploration Rate (%) 61 | 6 74 86 61 81 Regions Visited 4 Branch Regions 3 Pre-discovered Areas 2 | . . 1 1 . Known Exits Taken 2 | . 1 1 . . Unknown Exits Taken 2 | 1 . . 1 . Scrap Searched 3 | . . 1 . 2 Spaces Dug . | . . . . . Terrain Destroyed 39 | . . 2 . 37 Melee . | . . . . . Projectile 5 | . . . . 5 AOE 34 | . . 2 . 32 Terrain Rammed . | . . . . . Walls Destroyed . | . . . . . Machines Disabled . | . . . . . Actions | -11 -10 -10 -10 -9 --------- Run | Yrd Mat Min Exi Min Total 2215 | 102 667 496 343 607 Wait 133 | . 70 58 . 5 Move 1888 | 79 506 426 325 552 Hop . | . . . . . Pick Up 48 | 8 24 3 6 7 Fast Attach 6 | 6 . . . . Attach 5 | 1 . . . 4 Detach . | . . . . . Swap 10 | . 8 . . 2 Drop 35 | . 13 3 12 7 Fire 90 | 8 46 6 . 30 Melee . | . . . . . Ram . | . . . . . Kick . | . . . . . Crush . | . . . . . Escape Stasis . | . . . . . Rewire . | . . . . . Trap . | . . . . . Miscellaneous . | . . . . . Route ------- -11/Scrapyard -10/Materials (discovered 3 exits: *Mat / *Min x2) -10/Mines (discovered 3 exits: *Mat x2 / *Exi) -10/Exiles -9/Mines (discovered 1 exit: [*Mat]) History --------- Turn | Location | Event 32 | -11/Scrapyard | Discovered new exit (range 15) 137 | -11/Scrapyard | Entered Materials 160 | -10/Materials | Discovered new exit (range 15) 257 | -10/Materials | Discovered new exit (range 16) 280 | -10/Materials | Identified exit to Mines 304 | -10/Materials | Build established: Mutant 549 | -10/Materials | Discovered new exit (range 16) 960 | -10/Materials | Entered Mines 961 | -10/Mines | Learned location of Storage (-7) 976 | -10/Mines | Learned Materials emergency access door positions 989 | -10/Mines | Identified exit to Exiles 1079 | -10/Mines | Deemed a non-threat by the Exiles lab entrance 1126 | -10/Mines | Found a damaged Exp. Sensor Array with a note attached 1136 | -10/Mines | Discovered new exit (range 10) 1205 | -10/Mines | Identified exit to Materials 1222 | -10/Mines | Received a Rocket Launcher from a helpful Derelict 1509 | -10/Mines | Entered Exiles 1540 | -10/Exiles | Met 8R-AWN 1560 | -10/Exiles | Met EX-HEX 1589 | -10/Exiles | Met EX-BIN 1603 | -10/Exiles | Aligned with FarCom system 1604 | -10/Exiles | Given EX-Vault access code 1630 | -10/Exiles | Opened EX-Vault 1677 | -10/Exiles | Found Firepult 1714 | -10/Exiles | Warned to stay clear of 0b10 Research branches 1757 | -10/Exiles | Found Skeleton Box 1765 | -10/Exiles | Found Army-in-a-Box 1821 | -10/Exiles | Met EX-DEC 1826 | -10/Exiles | Learned location of Zion (-6) 1870 | -10/Exiles | Discovered new exit (range 10) 1879 | -10/Exiles | Stole three prototypes: Skeleton Box, Army-in-a-Box, Firepult 1879 | -10/Exiles | Entered Mines 1939 | -9/Mines | Found the Drone Emporium 1989 | -9/Mines | Assembled infested the area 2038 | -9/Mines | Core integrity fell below 50% 2071 | -9/Mines | Core integrity fell below 20% 2213 | -9/Mines | Found a hidden stash of uninstalled traps 2609 | -9/Mines | Discovered new exit (range 16) 2619 | -9/Mines | Destroyed by YI-UF0 with YI-UF0's Doublenader Last Messages --------------- 02567_ Found Beam Cannon. 02567_ Found Sml. Laser. 02567_ Found 43 Matter. 02599_ U-05 Engineer destroyed. 02602_ Acquired 4 matter. 02606_ The unstable cave ceiling collapses. 02609_ EXIT=FOUND 02612_ T-07 Excavator destroyed. 02613_ Acquired 4 matter. 02616_ U-05 Engineer lays Concrete. 02616_ YI-UF0: "BOOM!" 02616_ YI-UF0: "BLAM!" 02616_ K-01 Serf collects debris. 02617_ U-05 Engineer lays Concrete. 02618_ YI-UF0 mumbles something. 02618_ The unstable cave ceiling collapses. 02618_ U-05 Engineer lays Concrete. 02618_ Destroyed Shock Absorption System. 02619_ Acquired 4 matter. 02619_ U-05 Engineer lays Concrete. Map ----- +----------------------------------------------------+ | ????????????????????????????????????????????????? | | ????????????????????????????????????????????????? | | ????????????????????????????????????????????????? | | ????????????????????????????????????????????????? | | ????????????????????????????????????????????????? | | ????????????????????????????????????????????????? | | ????????????????????????????????????????????????? | | ????????????????????????????????????????????????? | | ????????????????????????????????????????????????? | | ????????????????????????????????????????????????? | | ??????????????????????? ???????????????????????? | | ????????????????????? ?!k????#??????????????????? | | ??????????????????? ?%